bitfinex-derivatives/quotes_ETHF0:USTF0_20250403
["timestamp","ask_amount","ask_price","bid_price","bid_amount"]
[1743654172549,6.50663,1827.4,1827.3,4.6255]
[1743654173353,6.50663,1827.4,1827.3,1.4177]
[1743654173654,6.50663,1827.4,1827.1,5.50254]
[1743654173854,1.4073,1827.3,1827.1,6.92614]
[1743654174554,1.4073,1827.3,1827.1,6.23634]
[1743654174852,2.283,1827.3,1827.1,4.6314]
[1743654175055,0.7394,1827.2,1827.1,4.6314]
[1743654175245,2.1467,1827.2,1827.1,4.6314]
[1743654176153,2.1467,1827.2,1827.1,5.50717]
[1743654176453,2.1467,1827.2,1827.1,4.6314]
[1743654177058,5.11885,1827.4,1827.1,5.50717]
[1743654177251,5.11885,1827.4,1827.2,1.4569]
[1743654177446,5.11885,1827.4,1827.2,2.33262]
[1743654177652,6.54575,1827.4,1827.2,2.33262]
[1743654177851,6.54575,1827.4,1827.3,1.4569]
[1743654178356,6.54575,1827.4,1827.1,3.2078]
[1743654178555,2.30258,1827.3,1827.1,3.2078]
[1743654178755,2.30258,1827.3,1827.2,1.4569]
[1743654179755,0.87572,1827.2,1827.1,3.2078]
[1743654179956,3.10092,1827.2,1827.1,3.2078]
[1743654180860,0.87577,1827.1,1827.0,0.00819919]
[1743654181156,6.64437,1827.1,1827.0,0.00819919]
[1743654182559,8.9764,1827.1,1826.6,4.6701]
[1743654182758,0.87596,1826.7,1826.6,4.6701]
[1743654183363,3.08606,1826.7,1826.6,4.6701]
[1743654184865,2.2101,1826.7,1826.6,4.6701]
[1743654185061,0.00819919,1826.8,1826.7,0.87596]
[1743654185263,0.00819919,1826.8,1826.7,2.35926]
[1743654190466,0.00819919,1826.8,1826.6,3.2078]
[1743654190662,0.87596,1826.7,1826.5,2.85379919]
[1743654190861,2.34636,1826.7,1826.6,4.6371]
[1743654191064,5.90536,1826.7,1826.6,4.6371]
[1743654192767,5.90536,1826.7,1826.6,1.4293]
[1743654193071,0.87601,1826.6,1826.5,0.00819919]
[1743654193264,2.2292,1826.6,1826.5,0.00819919]
[1743654193663,2.2292,1826.6,1826.5,1.52289919]
[1743654194070,3.10521,1826.6,1826.5,1.52289919]
[1743654194271,3.10521,1826.6,1826.5,0.00819919]
[1743654197367,0.8762,1826.2,1826.1,1.4164]
[1743654197574,3.559,1826.2,1826.1,1.4164]
[1743654197966,5.742,1826.2,1826.1,1.4164]
[1743654198775,6.6182,1826.2,1826.1,1.4164]
[1743654200669,0.87625,1826.1,1826.0,3.2078]
[1743654201074,2.26805,1826.1,1826.0,3.2078]
[1743654201275,2.26805,1826.1,1826.0,4.689]
[1743654202066,0.87625,1826.1,1826.0,4.689]
[1743654202272,1.3918,1826.4,1826.0,4.689]
[1743654202477,3.559,1826.4,1826.2,3.2078]
[1743654202676,3.559,1826.4,1826.3,3.11025]
[1743654202879,4.3179,1826.6,1826.3,2.9841]
[1743654203180,0.87599,1826.7,1826.5,3.2078]
[1743654203380,3.559,1826.6,1826.5,3.2078]
[1743654203673,4.43501,1826.6,1826.5,3.2078]
[1743654204279,3.559,1826.6,1826.5,3.2078]
[1743654204484,3.559,1826.6,1826.5,4.08386]
[1743654205280,3.559,1826.6,1826.5,3.2078]
[1743654205885,4.43501,1826.6,1826.5,3.2078]
[1743654206185,6.59031,1826.6,1826.5,3.2078]
[1743654207275,6.59031,1826.6,1826.3,5.58683]
[1743654207677,6.59031,1826.6,1826.4,0.8761]
[1743654210281,5.7143,1826.6,1826.4,0.8761]
[1743654210880,6.59031,1826.6,1826.4,0.8761]
[1743654212687,5.7143,1826.6,1826.4,0.8761]
[1743654212988,5.7143,1826.6,1826.5,0.87606]
[1743654213883,5.7143,1826.6,1826.5,4.08386]
[1743654215787,4.3,1826.6,1826.5,4.08386]
[1743654217481,5.8182,1826.6,1826.5,4.08386]
[1743654221782,5.8182,1826.6,1826.5,3.2078]
[1743654221783,6.69421,1826.6,1826.5,3.2078]
[1743654224682,6.69421,1826.6,1826.3,0.7529]
[1743654224683,0.87611,1826.4,1826.3,3.2078]
[1743654224883,3.07069,1826.5,1826.3,3.2078]
[1743654225092,1.4384,1826.4,1826.3,3.2078]
[1743654225684,2.31451,1826.4,1826.3,3.2078]
[1743654228490,2.31451,1826.4,1826.3,4.6723]
[1743654228687,0.741,1826.6,1826.5,0.87606]
[1743654228892,5.81509919,1826.8,1826.5,4.08386]
[1743654229087,2.2179,1826.7,1826.6,1.4645]
[1743654231487,5.19581919,1826.8,1826.7,0.87596]
[1743654231488,0.00819919,1826.8,1826.7,0.87596]
[1743654231693,0.00819919,1826.8,1826.7,4.08376]
[1743654231888,0.00819919,1826.8,1826.7,5.56636]
[1743654240603,1.6167,1827.3,1827.2,0.87572]
[1743654240604,0.741,1827.3,1827.2,0.87572]
[1743654241303,4.9583,1827.4,1827.3,0.87567]
[1743654241504,1.4013,1827.4,1827.3,4.08347]
[1743654241910,1.4013,1827.4,1827.3,5.49877]
[1743654242410,1.4013,1827.4,1827.3,3.2078]
[1743654242603,2.1325,1827.4,1827.3,3.2078]
[1743654243006,2.1325,1827.4,1827.3,5.49877]
[1743654245115,2.1325,1827.4,1827.3,3.2078]
[1743654247103,3.00813,1827.4,1827.3,3.2078]
[1743654247305,3.00813,1827.4,1827.2,0.00819919]
[1743654247506,1.4292,1827.3,1827.2,0.00819919]
[1743654247910,1.4292,1827.3,1827.2,0.88391919]
[1743654248111,1.4292,1827.3,1827.2,2.25861919]
[1743654249009,1.4292,1827.3,1827.2,1.38289919]
[1743654249209,1.4292,1827.3,1827.2,2.25861919]
[1743654250222,1.4292,1827.3,1827.2,1.38289919]
[1743654251513,2.30487,1827.3,1827.2,0.00819919]
[1743654251812,1.4292,1827.3,1827.2,0.00819919]
[1743654252003,2.30487,1827.3,1827.2,0.00819919]
[1743654252410,1.4292,1827.3,1827.2,0.00819919]
[1743654252611,1.4292,1827.3,1827.2,0.88391919]
[1743654252920,1.4292,1827.3,1827.2,2.31851919]
[1743654253218,1.4292,1827.3,1827.2,1.44279919]
[1743654254413,1.4292,1827.3,1827.2,2.31851919]
[1743654255712,0.7312,1827.4,1827.3,0.87567]
[1743654255914,0.7312,1827.4,1827.3,5.58507]
[1743654256111,0.7312,1827.4,1827.3,4.7094]
[1743654256310,2.1659,1827.4,1827.3,4.7094]
[1743654256710,3.04153,1827.4,1827.3,4.7094]
[1743654256915,3.04153,1827.4,1827.3,3.2078]
[1743654257319,0.87567,1827.3,1827.2,0.00819919]
[1743654257519,2.31037,1827.3,1827.2,0.00819919]
[1743654258217,1.4347,1827.3,1827.2,0.00819919]
[1743654258824,1.4347,1827.3,1827.2,2.38551919]
[1743654259020,1.4347,1827.3,1827.2,3.13681919]
[1743654259421,1.4347,1827.3,1827.2,2.38551919]
[1743654263221,2.31037,1827.3,1827.2,0.00819919]
[1743654263724,0.00819919,1827.5,1827.2,0.00819919]
[1743654263916,1.37589919,1827.5,1827.4,0.87563]
[1743654264116,1.37589919,1827.5,1827.4,2.32433]
[1743654266417,1.37589919,1827.5,1827.4,5.53213]
[1743654266821,0.00819919,1827.5,1827.4,5.53213]
[1743654269822,0.00819919,1827.5,1827.4,3.2078]
[1743654270020,1.42709919,1827.5,1827.4,4.08343]
[1743654270523,1.42709919,1827.5,1827.4,3.2078]
[1743654271427,1.42709919,1827.5,1827.4,4.08343]
[1743654271819,0.00819919,1827.5,1827.4,4.08343]
[1743654284136,0.00819919,1827.5,1827.4,3.2078]
[1743654284340,1.40159919,1827.5,1827.4,4.08343]
[1743654284544,0.00819919,1827.5,1827.4,5.48823]
[1743654291849,1.41779919,1827.5,1827.4,5.48823]
[1743654293050,1.41779919,1827.5,1827.4,2.28043]
[1743654293251,1.41779919,1827.5,1827.4,5.48823]
[1743654295158,0.00819919,1827.5,1827.4,5.48823]
[1743654295360,0.00819919,1827.5,1827.4,3.2078]
[1743654295652,1.41769919,1827.5,1827.4,3.2078]
[1743654299154,2.29327919,1827.5,1827.4,3.2078]
[1743654304556,0.87567,1827.3,1827.2,0.00819919]
[1743654304763,4.42967,1827.3,1827.2,0.00819919]
[1743654305167,5.88017,1827.3,1827.2,0.00819919]
[1743654305965,8.38017,1827.3,1827.2,0.00819919]
[1743654306165,0.87587,1826.9,1826.8,3.2078]
[1743654306354,4.42987,1826.9,1826.8,3.2078]
[1743654307162,0.87598,1826.7,1826.6,3.2078]
[1743654307769,2.28938,1826.7,1826.6,3.2078]
[1743654307973,0.87603,1826.6,1826.4,3.2078]
[1743654308160,1.4984,1826.5,1826.4,3.2078]
[1743654308568,2.9118,1826.5,1826.4,3.2078]
[1743654308763,2.9118,1826.5,1826.4,4.08391]
[1743654308966,3.554,1826.6,1826.5,0.87606]
[1743654309166,3.554,1826.6,1826.5,2.38316]
[1743654310573,3.554,1826.6,1826.5,1.5071]
[1743654310769,4.978,1826.6,1826.5,1.5071]
[1743654311167,4.978,1826.6,1826.5,2.38316]
[1743654311478,3.554,1826.6,1826.5,2.38316]
[1743654312476,3.554,1826.6,1826.5,1.5071]
[1743654312674,4.43001,1826.6,1826.4,3.2078]
[1743654312875,1.424,1826.5,1826.4,3.2078]
[1743654313971,1.424,1826.5,1826.4,4.6957]
[1743654314872,1.424,1826.5,1826.4,3.2078]
[1743654315276,1.424,1826.5,1826.4,4.6957]
[1743654317581,2.30006,1826.5,1826.4,4.6957]
[1743654317773,2.30006,1826.5,1826.4,3.2078]
[1743654319376,0.87616,1826.3,1826.2,3.2078]
[1743654319572,4.43116,1826.3,1826.2,3.2078]
[1743654319774,4.43115,1826.3,1826.2,3.2078]
[1743654319976,5.82925,1826.3,1826.2,3.2078]
[1743654320675,4.9531,1826.3,1826.2,4.5838]
[1743654320874,3.555,1826.3,1826.2,5.46]
[1743654321275,0.00819919,1826.4,1826.3,0.87615]
[1743654321582,3.56319919,1826.4,1826.3,3.67625]
[1743654323484,3.56319919,1826.4,1826.3,2.8001]
[1743654324890,3.56319919,1826.4,1826.3,3.67625]
[1743654327591,0.00819919,1826.4,1826.3,3.67625]
[1743654335792,1.05825435,1827.3,1826.5,2.19011]
[1743654335985,2.1459,1827.1,1826.9,4.08364]
[1743654336191,3.0217,1827.1,1826.9,3.2078]
[1743654336385,2.31582,1827.0,1826.9,3.2078]
[1743654340693,1.44,1827.0,1826.9,4.08367]
[1743654341093,4.995,1827.0,1826.9,4.08367]
[1743654341294,4.26909919,1827.1,1827.0,0.87582]
[1743654341490,4.26909919,1827.1,1827.0,2.36822]
[1743654341694,5.72159919,1827.1,1827.0,2.36822]
[1743654342698,5.72159919,1827.1,1827.0,1.4924]
[1743654342900,5.72159919,1827.1,1827.0,2.36822]
[1743654343301,5.72159919,1827.1,1827.0,1.4924]
[1743654344697,6.59740919,1827.1,1826.9,3.2078]
[1743654344998,1.3791,1827.0,1826.9,3.2078]
[1743654346903,4.26909919,1827.1,1826.9,4.08363]
[1743654347098,4.26909919,1827.1,1827.0,2.38962]
[1743654347603,0.00819919,1827.1,1827.0,2.38962]
[1743654350701,1.428,1827.5,1827.4,0.87563]
[1743654350909,1.428,1827.5,1827.4,4.08343]
[1743654352317,1.428,1827.5,1827.4,5.53793]
[1743654353121,3.56219919,1827.6,1827.4,5.53793]
[1743654353122,0.00819919,1827.6,1827.5,0.87558]
[1743654353317,0.00819919,1827.6,1827.5,2.33008]
[1743654353622,0.00819919,1827.6,1827.5,3.07388]
[1743654357327,0.00819919,1827.6,1827.5,2.33008]
[1743654357629,0.00819919,1827.6,1827.5,0.87558]
[1743654357929,0.73109919,1827.6,1827.4,4.0834]
[1743654358129,1.5031,1827.5,1827.4,4.0834]
[1743654360635,1.43689919,1827.6,1827.5,0.87558]
[1743654360636,0.00819919,1827.6,1827.5,0.87558]
[1743654360931,0.00819919,1827.6,1827.5,2.94838]
[1743654362333,0.00819919,1827.6,1827.5,2.25408]
[1743654362535,1.37719919,1827.6,1827.5,2.25408]
[1743654362728,1.37719919,1827.6,1827.4,4.08339]
[1743654363034,0.6983,1827.5,1827.4,4.08339]
[1743654363336,0.6983,1827.5,1827.4,5.45379]
[1743654365939,1.37719919,1827.6,1827.5,0.87558]
[1743654366238,1.37719919,1827.6,1827.5,2.30158]
[1743654366738,0.00819919,1827.6,1827.5,2.30158]
[1743654366931,0.00819919,1827.6,1827.5,2.98638]
[1743654368341,0.00819919,1827.6,1827.5,1.426]
[1743654368540,0.00819919,1827.6,1827.4,4.08339]
[1743654368741,1.41819919,1827.6,1827.4,4.08339]
[1743654370238,3.552,1827.5,1827.2,3.2078]
[1743654370447,2.98836,1827.4,1827.2,3.2078]
[1743654370638,3.02567,1827.3,1827.2,3.2078]
[1743654370843,2.15,1827.3,1827.0,4.08361]
[1743654371043,4.962,1827.2,1827.0,4.08361]
[1743654371240,1.41,1827.1,1827.0,4.08361]
[1743654371448,2.1554,1827.1,1827.0,4.08361]
[1743654371944,2.1554,1827.1,1827.0,3.2078]
[1743654373141,2.1554,1827.1,1826.8,1.50439919]
[1743654373142,2.1554,1827.1,1826.8,3.21599919]
[1743654373445,1.4752,1827.0,1826.8,3.21599919]
[1743654373746,0.732,1826.9,1826.8,3.21599919]
[1743654374039,4.284,1826.9,1826.8,4.09190919]
[1743654374239,5.7592,1826.9,1826.8,4.09190919]
[1743654375744,6.63507,1826.9,1826.8,0.00819919]
[1743654376737,0.87606,1826.5,1826.2,5.54358]
[1743654376939,1.3912,1826.4,1826.2,5.54358]
[1743654377249,2.7851,1826.4,1826.2,5.54358]
[1743654377751,1.3939,1826.3,1826.0,4.08407]
[1743654377939,1.3939,1826.3,1826.1,0.00819919]
[1743654378345,1.3939,1826.3,1826.1,0.88444919]
[1743654378546,1.3939,1826.3,1826.1,1.39689919]
[1743654378753,1.3939,1826.3,1826.1,0.00819919]
[1743654378754,2.27005,1826.3,1826.1,0.00819919]
[1743654378947,3.553,1826.2,1826.1,0.00819919]
[1743654379150,5.0256,1826.2,1826.1,0.00819919]
[1743654380654,3.553,1826.2,1826.1,1.39689919]
[1743654380853,3.553,1826.2,1826.1,2.27314919]
[1743654381151,3.553,1826.2,1826.1,1.39689919]
[1743654383656,3.553,1826.2,1826.1,2.27314919]
[1743654387761,1.3912,1826.4,1826.2,0.8762]
[1743654387955,4.9442,1826.4,1826.3,1.4676]
[1743654388155,6.463,1826.4,1826.3,1.4676]
[1743654390364,6.463,1826.4,1826.3,2.34375]
[1743654390766,2.91,1826.4,1826.3,2.34375]
[1743654390963,3.56219919,1826.5,1826.4,0.87611]
[1743654392058,3.56219919,1826.5,1826.3,2.34372]
[1743654392563,5.08269919,1826.5,1826.3,2.34372]
[1743654393465,5.95876919,1826.5,1826.3,2.34372]
[1743654393667,5.08269919,1826.5,1826.3,1.4676]
[1743654393864,5.08269919,1826.5,1826.3,2.34373]
[1743654394062,5.08269919,1826.5,1826.2,4.08398]
[1743654394264,2.1572,1826.4,1826.2,4.08398]
[1743654394464,2.1572,1826.3,1826.2,4.08398]
[1743654395268,2.1572,1826.3,1826.2,3.2078]
[1743654395466,2.1572,1826.3,1826.2,4.084]
[1743654395659,2.1572,1826.3,1826.2,5.4611]
[1743654396670,2.1572,1826.3,1826.2,4.5849]
[1743654396969,3.03335,1826.3,1826.2,3.2078]
[1743654397358,0.6931,1826.4,1826.2,3.2078]
[1743654397558,0.6931,1826.4,1826.3,2.24755]
[1743654398566,2.0765,1826.4,1826.3,2.24755]
[1743654400465,4.2461,1826.4,1826.3,2.24755]
[1743654405268,0.87615,1826.3,1826.2,3.2078]
[1743654405468,3.07215,1826.3,1826.2,3.2078]
[1743654410769,0.8762,1826.2,1826.1,0.00819919]
[1743654411082,1.4985,1826.2,1826.1,0.00819919]
[1743654411268,1.4985,1826.2,1826.1,0.88444919]
[1743654411573,1.4985,1826.2,1826.1,2.37654919]
[1743654414479,2.3747,1826.2,1826.1,0.00819919]
[1743654421181,0.87635,1825.9,1825.8,3.2078]
[1743654421382,4.42935,1825.9,1825.8,3.2078]
[1743654422383,5.87815,1825.9,1825.8,3.2078]
[1743654427375,4.2689,1826.1,1825.9,0.87635]
[1743654427574,4.2689,1826.1,1826.0,1.4528]
[1743654427777,3.553,1826.1,1826.0,5.5369]
[1743654427978,3.553,1826.1,1826.0,4.6606]
[1743654428182,4.42925,1826.1,1826.0,4.6606]
[1743654428387,6.56415,1826.1,1826.0,1.4528]
[1743654429386,5.6879,1826.1,1826.0,1.4528]
[1743654429892,5.6879,1826.1,1826.0,2.3291]
[1743654430088,4.2573,1826.1,1826.0,2.3291]
[1743654430487,4.2573,1826.1,1826.0,1.4528]
[1743654432281,4.2573,1826.1,1826.0,2.3291]
[1743654432891,4.2573,1826.1,1826.0,1.4528]
[1743654433690,4.2573,1826.1,1826.0,2.3291]
[1743654434891,3.553,1826.1,1826.0,5.5369]
[1743654444497,3.553,1826.1,1825.9,1.61141]
[1743654444795,5.0496,1826.1,1825.9,3.12931]
[1743654444993,5.92585,1826.1,1825.9,3.12931]
[1743654445497,5.0496,1826.1,1825.9,3.12931]
[1743654446398,2.1813,1826.0,1825.9,3.12931]
[1743654449603,2.1813,1826.0,1825.9,1.5179]
[1743654450894,3.0576,1826.0,1825.9,1.5179]
[1743654451100,2.1813,1826.0,1825.9,1.5179]
[1743654453802,3.0576,1826.0,1825.9,1.5179]
[1743654454006,3.0576,1826.0,1825.8,4.79787]
[1743654454197,2.1217,1825.9,1825.8,4.79787]
[1743654454500,2.1217,1825.9,1825.8,4.08417]
[1743654454804,2.1217,1825.9,1825.8,3.2078]
[1743654455396,2.1217,1825.9,1825.8,4.08419]
[1743654455606,2.1217,1825.9,1825.8,3.2078]
[1743654456104,2.1217,1825.9,1825.8,4.08419]
[1743654458006,2.1217,1825.9,1825.8,3.2078]
[1743654458403,4.2752,1826.0,1825.9,0.87635]
[1743654458705,5.7565,1826.0,1825.9,2.35415]
[1743654458895,5.7565,1826.0,1825.8,4.08417]
[1743654459097,1.4813,1825.9,1825.8,4.08417]
[1743654460210,2.35765,1825.9,1825.8,3.2078]
[1743654461318,0.87644,1825.7,1825.6,4.6669]
[1743654461610,3.552,1825.7,1825.6,5.54339]
[1743654461812,4.42844,1825.7,1825.6,4.6669]
[1743654462007,4.42844,1825.7,1825.6,3.2078]
[1743654462210,6.69114,1825.7,1825.6,3.2078]
[1743654462608,0.87655,1825.5,1825.3,0.87663]
[1743654462816,1.5039,1825.4,1825.3,2.33573]
[1743654463010,5.0559,1825.4,1825.3,1.4591]
[1743654463210,5.93249,1825.4,1825.2,3.2078]
[1743654463515,2.36083,1825.3,1825.2,3.2078]
[1743654464114,1.4842,1825.3,1825.2,3.2078]
[1743654464317,1.4842,1825.3,1825.2,4.08448]
[1743654464517,1.4842,1825.3,1825.2,3.2078]
[1743654465215,2.36083,1825.3,1825.2,3.2078]
[1743654466507,1.4842,1825.3,1825.2,3.2078]
[1743654466813,2.36083,1825.3,1825.2,3.2078]
[1743654468117,5.93252,1825.4,1825.2,4.08448]
[1743654468425,5.93252,1825.4,1825.2,3.2078]
[1743654468722,1.4754,1825.3,1825.2,4.71]
[1743654469017,5.0559,1825.4,1825.2,5.58668]
[1743654469214,5.93249,1825.4,1825.3,1.5022]
[1743654470422,3.552,1825.4,1825.3,2.37883]
[1743654471116,0.88470919,1825.6,1825.4,0.87658]
[1743654471317,0.88470919,1825.6,1825.5,1.3767]
[1743654471516,4.43770919,1825.6,1825.5,1.3767]
[1743654471716,5.90010919,1825.6,1825.5,1.3767]
[1743654473816,0.87655,1825.5,1825.3,0.87662]
[1743654474016,2.39235,1825.5,1825.4,1.4246]
[1743654475720,4.43771919,1825.6,1825.4,1.4246]
[1743654475926,4.43771919,1825.6,1825.4,2.30117]
[1743654476519,4.43771919,1825.6,1825.5,1.4962]
[1743654477111,5.93041919,1825.6,1825.5,1.4962]
[1743654478224,5.05389919,1825.6,1825.5,1.4962]
[1743654478423,5.93038919,1825.6,1825.5,1.4962]
[1743654479617,0.87659,1825.4,1825.3,3.2078]
[1743654480023,2.35427,1825.5,1825.3,3.2078]
[1743654480219,2.35427,1825.5,1825.3,4.7206]
[1743654480526,2.35427,1825.5,1825.4,1.5128]
[1743654481714,0.87659,1825.4,1825.3,3.2078]
[1743654481926,3.79829,1825.4,1825.3,3.2078]
[1743654484321,0.87665,1825.3,1825.1,1.4359]
[1743654484527,3.553,1825.2,1825.1,1.4359]
[1743654484929,5.0656,1825.2,1825.1,1.4359]
[1743654485622,3.21599919,1825.6,1825.2,0.87665]
[1743654485623,4.42955,1825.5,1825.2,0.87665]
[1743654485827,5.788,1825.5,1825.3,1.385]
[1743654486228,0.87659,1825.4,1825.3,1.385]
[1743654486527,0.87668,1825.2,1825.1,1.385]
[1743654486725,0.87673,1825.1,1825.0,3.2078]
[1743654486925,3.14283,1825.1,1825.0,3.2078]
[1743654487630,3.553,1825.2,1825.0,3.2078]
[1743654487833,3.553,1825.2,1825.1,1.4186]
[1743654492734,4.42968,1825.2,1825.1,1.4186]
[1743654493744,3.553,1825.2,1825.1,1.4186]
[1743654494739,0.7535,1825.4,1825.2,0.87668]
[1743654494936,3.553,1825.4,1825.3,2.98853]
[1743654495136,3.553,1825.4,1825.3,3.70983]
[1743654497834,0.00819919,1825.6,1825.5,0.87654]
[1743654498040,0.00819919,1825.6,1825.5,4.08434]
[1743654498544,0.00819919,1825.6,1825.5,3.2078]
[1743654498738,3.85488919,1825.6,1825.5,3.2078]
[1743654500042,2.97839919,1825.6,1825.5,3.2078]
[1743654500443,2.97839919,1825.6,1825.5,5.54604]
[1743654500643,0.00819919,1825.6,1825.5,5.54604]
[1743654511263,1.451,1826.0,1825.8,0.87637]
[1743654511451,1.451,1826.0,1825.9,2.33055]
[1743654511657,1.451,1826.0,1825.9,3.08935]
[1743654512053,2.3273,1826.0,1825.9,2.213]
[1743654512464,3.7789,1826.0,1825.9,1.4542]
[1743654513862,2.9026,1826.0,1825.9,1.4542]
[1743654516657,3.7789,1826.0,1825.9,1.4542]
[1743654517761,0.87635,1825.9,1825.8,3.2078]
[1743654517962,0.87644,1825.8,1825.6,3.2078]
[1743654518162,2.2286,1825.7,1825.6,3.2078]
[1743654518356,2.9303,1825.7,1825.6,3.2078]
[1743654518865,3.80674,1825.7,1825.6,3.2078]
[1743654519564,2.9303,1825.7,1825.6,3.2078]
[1743654521566,2.9303,1825.7,1825.5,2.34662]
[1743654521767,1.5172,1825.6,1825.5,2.34662]
[1743654521968,1.5172,1825.6,1825.5,5.55442]
[1743654523571,1.5172,1825.6,1825.5,4.6779]
[1743654523973,2.39369,1825.6,1825.5,3.2078]
[1743654524269,1.5172,1825.6,1825.5,3.2078]
[1743654526465,2.39369,1825.6,1825.5,3.2078]
[1743654526665,1.5172,1825.6,1825.5,3.2078]
[1743654527958,1.5172,1825.6,1825.5,4.08434]
[1743654528358,1.4376,1825.7,1825.6,0.87649]
[1743654528568,1.4376,1825.7,1825.6,1.4379]
[1743654528768,3.76414,1825.7,1825.5,4.0843]
[1743654528970,0.87649,1825.6,1825.5,3.2078]
[1743654529268,2.32659,1825.6,1825.5,3.2078]
[1743654529679,1.4501,1825.6,1825.5,3.2078]
[1743654532370,1.4501,1825.6,1825.4,2.32265919]
[1743654532570,1.4501,1825.6,1825.5,3.2078]
[1743654533375,2.32659,1825.6,1825.5,3.2078]
[1743654533560,1.4501,1825.6,1825.5,4.08434]
[1743654533974,1.4501,1825.6,1825.5,3.2078]
[1743654534374,1.4501,1825.6,1825.5,4.08434]
[1743654534767,1.4501,1825.6,1825.5,3.2078]
[1743654534970,1.4501,1825.6,1825.5,4.08434]
[1743654536975,1.4376,1825.7,1825.6,0.87649]
[1743654537271,1.4376,1825.7,1825.6,1.4617]
[1743654537272,2.8334,1825.7,1825.6,1.4617]
[1743654538174,3.70984,1825.7,1825.5,4.08432]
[1743654538370,1.3958,1825.6,1825.5,4.08432]
[1743654538572,2.27229,1825.6,1825.5,3.2078]
[1743654539779,1.3958,1825.6,1825.5,4.08434]
[1743654540277,4.9876,1825.7,1825.6,0.87649]
[1743654540477,4.9876,1825.7,1825.6,2.29289]
[1743654541178,1.4262,1825.8,1825.7,0.87644]
[1743654541378,4.9762,1825.8,1825.7,2.29284]
[1743654542275,3.55,1825.9,1825.8,0.87637]
[1743654542478,3.55,1825.9,1825.8,2.27577]
[1743654543480,2.8409,1826.0,1825.8,2.27577]
[1743654543681,2.8409,1826.0,1825.9,2.27575]
[1743654545984,0.00819919,1826.1,1826.0,0.8763]
[1743654546278,0.00819919,1826.1,1826.0,3.8844]
[1743654548790,0.00819919,1826.1,1826.0,1.5116]
[1743654549081,2.89609919,1826.1,1826.0,1.5116]
[1743654549477,3.77235919,1826.1,1825.9,4.08411]
[1743654549687,1.46,1826.0,1825.9,3.2078]
[1743654550381,1.46,1826.0,1825.9,4.08415]
[1743654551390,1.46,1826.0,1825.9,3.2078]
[1743654552193,2.3363,1826.0,1825.9,3.2078]
[1743654552883,2.3363,1826.0,1825.7,1.5155]
[1743654552884,0.87641,1825.8,1825.7,3.2078]
[1743654553092,4.42641,1825.8,1825.5,5.50472]
[1743654553289,2.819,1825.7,1825.6,0.87649]
[1743654553493,2.819,1825.7,1825.6,2.29689]
[1743654554297,2.819,1825.7,1825.6,1.4204]
[1743654555499,2.819,1825.7,1825.6,2.29689]
[1743654556492,2.819,1825.7,1825.6,1.4204]
[1743654556691,2.819,1825.7,1825.6,2.29689]
[1743654558298,3.55,1825.8,1825.6,2.29689]
[1743654558599,3.549,1825.8,1825.7,4.6421]
[1743654558993,3.549,1825.8,1825.7,5.51852]
[1743654559393,3.549,1825.8,1825.7,4.6421]
[1743654561699,5.0512,1825.8,1825.7,4.6421]
[1743654562102,5.0512,1825.8,1825.7,5.51854]
[1743654568603,3.549,1825.8,1825.7,5.51854]
[1743654569107,0.00819919,1826.1,1826.0,0.8763]
[1743654569306,0.00819919,1826.1,1825.9,4.08412]
[1743654569606,0.00819919,1826.1,1826.0,1.4534]
[1743654570599,0.72419919,1826.1,1826.0,1.4534]
[1743654570907,1.60044919,1826.1,1826.0,1.4534]
[1743654571116,3.06914919,1826.1,1826.0,1.4534]
[1743654572408,2.19289919,1826.1,1826.0,1.4534]
[1743654573706,2.19289919,1826.1,1826.0,2.3297]
[1743654574107,2.19289919,1826.1,1826.0,3.0211]
[1743654575709,0.00819919,1826.1,1826.0,3.0211]
[1743654575896,0.00819919,1826.1,1826.0,2.1448]
[1743654579309,0.00819919,1826.1,1826.0,3.0211]
[1743654579814,0.70249919,1826.1,1826.0,3.0211]
[1743654580016,0.00819919,1826.1,1826.0,3.0211]
[1743654580211,0.00819919,1826.1,1826.0,3.761]
[1743654586519,0.00819919,1826.1,1826.0,2.8847]
[1743654586917,2.98905919,1826.1,1825.9,3.2078]
[1743654587118,2.1356,1826.0,1825.9,3.2078]
[1743654587419,2.1356,1826.0,1825.9,4.6285]
[1743654587830,5.6836,1826.0,1825.9,3.2078]
[1743654588018,6.5599,1826.0,1825.9,3.2078]
[1743654588222,6.5599,1826.0,1825.6,3.2078]
[1743654588223,0.8764,1825.8,1825.6,3.2078]
[1743654588424,1.4556,1825.7,1825.4,4.59869919]
[1743654588626,6.4315,1825.7,1825.5,0.87653]
[1743654588925,7.30794,1825.7,1825.5,1.3827]
[1743654589114,1.4279,1825.6,1825.5,1.3827]
[1743654589724,1.4279,1825.6,1825.5,2.25924]
[1743654593126,5.0036,1825.7,1825.5,2.25924]
[1743654593327,5.0036,1825.7,1825.6,1.4908]
[1743654593821,6.4007,1825.7,1825.6,1.4908]
[1743654594016,6.4007,1825.7,1825.6,2.36729]
[1743654594222,6.4007,1825.7,1825.6,5.57509]
[1743654594820,3.548,1825.9,1825.7,0.87644]
[1743654595124,0.87637,1825.9,1825.7,1.4142]
[1743654595330,1.391,1825.8,1825.7,1.4142]
[1743654597928,4.42437,1825.9,1825.7,2.29064]
[1743654598129,4.42435,1825.9,1825.7,2.29064]
[1743654598425,4.42435,1825.9,1825.8,1.4249]
[1743654598726,5.89995,1825.9,1825.8,1.4249]
[1743654599114,5.0236,1825.9,1825.8,1.4249]